Cogmind - Beta 14 @@@ ROGUE MODE // 2024.10.05 @ 13:56:57 Player: Minty Result: Destroyed by Lightning with EMDS Performance ------------- Evolutions (5) 2500 Regions Visited (14) 2800 Robots Destroyed (167) 835 Value Destroyed (6551) 6551 Prototype IDs (38) 760 Alien Tech Used (0) 0 Bonus (1470) 1470 TOTAL SCORE: 14916 Bonus ------- High Alert Combat Kills 484 Follower Combat Kills 1431 Network Hubs Disabled 200 Aligned with FarCom 300 Built Enhanced Grunts 300 A7 Reached Mainframe 300 Friendly Fire -1545 Cogmind --------- Core Integrity 0/1000 Matter 270/300 Energy 41/100 System Corruption 33% Temperature Cool (0) Movement Core (50) Location -5/Hub_04(d) Parts ------- > --- POWER (1) -------- (None) > --- PROPULSION (3) --- (None) > --- UTILITY (9) ------ Experimental Heat Sink Advanced Sensor Array Advanced Signal Interpreter Improved Target Analyzer Core Analyzer Improved Hacking Suite Improved Hacking Suite Improved Hacking Suite Advanced Hacking Suite > --- WEAPON (4) ------- (None) > --- INVENTORY (5) ---- Trap Reconfigurator Latent Energy Streamer Peak State ------------ > --- POWER ------------ Quantum Reactor > --- PROPULSION ------- Armored Medium Treads Centrium Heavy Treads > --- UTILITY ---------- Experimental Heat Sink Large Storage Unit Advanced Sensor Array Advanced Signal Interpreter Improved Target Analyzer Core Analyzer Centrium Medium Armor Plating Centrium Medium Armor Plating Trap Reconfigurator > --- WEAPON ----------- Advanced Variable Charge Gun Railgun Smartbomb Launcher > --- INVENTORY -------- Experimental Heat Sink High-capacity Matter Pod Improved Particle Charger Improved Utility Shielding Improved Hacking Suite Improved Hacking Suite Improved Hacking Suite Advanced Hacking Suite Improved System Shield Improved System Shield Latent Energy Streamer Mass Driver Improved Grenade Launcher Deploy-a-Sentry Deploy-a-Sentry [Rating: 122] Favorites ----------- Power Improved Ion Engine Engine Improved Ion Engine Power Core Neutrino Core Reactor Quantum Reactor Propulsion Advanced Treads Treads Advanced Treads Leg VSS Leg Wheel Compact Wheel Utility Improved Medium Armor Plating Device Advanced Sensor Array Storage Large Storage Unit Processor Advanced Signal Interpreter Hackware Hacking Suite Protection Improved Medium Armor Plating Weapon Enhanced Autogun Energy Gun Improved Spread Laser Energy Cannon Latent Energy Streamer Ballistic Gun Enhanced Autogun Ballistic Cannon Bore Cannon Launcher Smartbomb Launcher Build | -11 -10 -10 -10 -9 -8 -8 -8 -8 -6 -5 -5 -5 -5 -5 ------- Run | Yrd Mat Min Exi Min Mat Sto Rec Scr Fac Fac Ext Cet Arc Hub Slots Evolved 10 | . . . . . 4 . . . 4 2 . . . . Power . | . . . . . . . . . . . . . . . Propulsion 1 | . . . . . 1 . . . . . . . . . Utility 7 | . . . . . 2 . . . 3 2 . . . . Weapon 2 | . . . . . 1 . . . 1 . . . . . Parts Attached 183 | . 7 3 . 1 17 41 1 3 8 44 30 8 8 12 Power 15 | . 1 1 . . 1 5 . . 1 2 2 1 . 1 Engine 5 | . 1 . . . 1 3 . . . . . . . . Core 9 | . . 1 . . . 2 . . 1 2 2 . . 1 Reactor 1 | . . . . . . . . . . . . 1 . . Propulsion 28 | . 2 1 . . 1 10 . . 2 6 5 1 . . Treads 18 | . 1 . . . . 5 . . 2 4 5 1 . . Leg 1 | . . . . . 1 . . . . . . . . . Wheel 9 | . 1 1 . . . 5 . . . 2 . . . . Hover . | . . . . . . . . . . . . . . . Flight . | . . . . . . . . . . . . . . . Utility 66 | . 1 1 . . 6 12 1 . 4 16 12 2 5 6 Device 25 | . . . . . 3 7 . . 2 5 4 . 3 1 Storage 3 | . . 1 . . 1 . . . . . 1 . . . Processor 5 | . 1 . . . . 1 . . . 2 1 . . . Hackware 8 | . . . . . . . . . 1 3 . . . 4 Protection 25 | . . . . . 2 4 1 . 1 6 6 2 2 1 Artifact . | . . . . . . . . . . . . . . . Weapon 74 | . 3 . . 1 9 14 . 3 1 20 11 4 3 5 Energy Gun 23 | . 1 . . . . . . . 1 15 1 2 1 2 Energy Cannon 4 | . . . . 1 . 1 . . . . 1 . . 1 Ballistic Gun 26 | . 2 . . . 2 10 . 3 . 5 2 . 2 . Ballistic Cannon 16 | . . . . . 6 2 . . . . 5 2 . 1 Launcher 5 | . . . . . 1 1 . . . . 2 . . 1 Special Weapon . | . . . . . . . . . . . . . . . Impact Weapon . | . . . . . . . . . . . . . . . Slashing Weapon . | . . . . . . . . . . . . . . . Piercing Weapon . | . . . . . . . . . . . . . . . Special Melee Weapon . | . . . . . . . . . . . . . . . Unidentified Prototypes 11 | . . . . . . 5 . . 1 2 . 3 . . Corrupted Parts 3 | . . . . . . . . . . . . 2 . 1 System Corruption 18 | . . . . . . . . . . . . 8 . 10 Parts Lost 42 | . 4 . . 2 . 11 . . . 7 6 . . 12 Power 7 | . 1 . . . . 3 . . . . 1 . . 2 Propulsion 12 | . 2 . . . . 4 . . . 4 . . . 2 Utility 9 | . . . . . . 2 . . . 2 2 . . 3 Weapon 14 | . 1 . . 2 . 2 . . . 1 3 . . 5 Highest Loss Streak 11 | . 3 . . 2 . 3 . . . 4 5 . . 11 To Critical Strikes . | . . . . . . . . . . . . . . . Average Slot Usage (%) 92 | . 82 100 100 75 91 91 95 100 93 93 95 89 87 81 Engine 2 | . 14 11 . . 2 5 9 9 1 . . . . . Core 3 | . . 2 14 14 6 1 . . 4 5 4 1 . . Treads 12 | . 6 5 . . . 9 27 27 20 12 16 12 11 10 Leg 1 | . 15 . . . 5 1 . . . . . . . . Wheel 5 | . 4 22 28 28 18 12 . . . . . . . . Device 10 | . . . . . 17 11 9 9 12 11 12 11 13 11 Storage 7 | . 14 14 14 14 9 9 9 9 6 5 5 5 5 4 Processor 8 | . . 14 14 14 . 1 . . . 8 15 17 17 17 Hackware 1 | . . . . . . . . . 5 8 . . . . Protection 13 | . . . . . 8 13 18 18 18 13 15 17 14 14 Energy Gun 2 | . 4 . . . . . . . 3 12 2 . . 2 Ballistic Gun 11 | . 23 28 28 4 2 16 22 27 20 9 . . 7 5 Ballistic Cannon 6 | . . . . . 20 10 . . . . 15 10 2 1 Peak Build Rating 122 | 6 7 10 13 20 32 45 43 42 59 90 96 114 117 122 Average Rating 61 | 6 5 7 11 11 27 33 41 41 53 75 83 105 114 104 On Entrance 44 | 6 6 7 10 13 10 32 43 31 42 58 90 86 111 115 Naked Turns . | . . . . . . . . . . . . . . . Heaviest Build 94 | 11 14 18 18 25 50 53 51 51 58 83 94 84 84 82 Greatest Support 107 | 20 20 32 32 32 32 66 66 66 66 84 84 107 107 107 Greatest Overweight (x) 5 | . . 1 . . 1 5 . . . 5 1 . . 1 Average Overweight (x) . | . . . . . . 1 . . . . . . . . Largest Inventory Capacity 15 | 8 8 10 10 10 15 15 15 15 15 15 15 15 15 15 Average Capacity 14 | 8 8 9 10 10 14 15 15 15 15 15 15 15 15 14 Most Carried 15 | 6 8 10 10 10 15 15 15 15 15 15 15 15 15 15 Average Carried 13 | 6 6 8 9 9 14 14 14 12 13 14 14 14 14 14 Final Capacity 15 | 8 8 10 10 10 15 15 15 15 15 15 15 15 15 5 Final Carried 15 | 6 7 10 10 9 15 15 15 12 15 15 15 15 15 2 Class Distribution -------------------- 19% | Scavenger-Tank 15% | Tank 13% | Commander-Tank 11% | Mutant 10% | Skirmisher 6% | Hacker-Skirmisher 5% | Derelict-Tank 4% | Scavenger-Gunner 3% | Hacker-Tank Dominant Class ---------------- Mutant | -10/Materials Mutant | -10/Mines Mutant | -10/Exiles Mutant | -9/Mines Skirmisher | -8/Materials Tank | -8/Storage Commander-Tank | -8/Recycling Commander-Tank | -8/Scraptown Tank | -6/Factory Hacker-Skirmisher | -5/Factory Derelict-Tank | -5/Extension Scavenger-Tank | -5/Cetus Scavenger-Tank | -5/Archives Scavenger-Tank | -5/Hub_04(d) Resources | -11 -10 -10 -10 -9 -8 -8 -8 -8 -6 -5 -5 -5 -5 -5 ----------- Run | Yrd Mat Min Exi Min Mat Sto Rec Scr Fac Fac Ext Cet Arc Hub Matter Collected 6488 | 200 199 70 . 10 332 2088 258 34 267 890 1375 210 314 241 Remotely 1923 | . . . . . 132 1025 . . 267 90 409 . . . Salvage Created 7109 | . 331 91 . 28 124 1820 578 . 292 1658 1357 139 314 377 Parts 355 | . 16 6 . 5 4 94 17 . 11 89 54 5 30 24 Haulers Intercepted 5 | . . . . . . 4 . . . 1 . . . . Recyclers Shooed 4 | . . . . . . 1 1 . . 1 1 . . . Parts Field Recycled . | . . . . . . . . . . . . . . . Retrieved Matter . | . . . . . . . . . . . . . . . Parts Self-Destructed . | . . . . . . . . . . . . . . . Prevented . | . . . . . . . . . . . . . . . Kills | -11 -10 -10 -10 -9 -8 -8 -8 -8 -6 -5 -5 -5 -5 -5 ------- Run | Yrd Mat Min Exi Min Mat Sto Rec Scr Fac Fac Ext Cet Arc Hub Combat Hostiles Destroyed 108 | . 7 2 . 2 6 31 8 . 5 21 20 3 . 3 Melee 1 | . . . . . . . . . 1 . . . . . Guns 66 | . 7 2 . 1 1 20 8 . 4 21 1 . . 1 Cannons 26 | . . . . . 2 6 . . . . 15 3 . . AOE 15 | . . . . 1 3 5 . . . . 4 . . 2 Classes Destroyed 18 | . 2 . . 1 2 7 1 . 1 2 1 . . 1 Worker 11 | . . . . . . 1 . . . 5 . . . 5 Builder 9 | . . . . . . 2 . . . 3 1 . . 3 Tunneler 1 | . . . . . . . . . . . . . . 1 Hauler 5 | . . . . . . 4 . . . 1 . . . . Recycler 8 | . . . . . . 3 2 . . 1 2 . . . Mechanic 3 | . . . . . . 2 . . . . 1 . . . Operator 12 | . . . . . . . . . 1 1 . . 9 1 Watcher 8 | . 1 . . . . 2 . . . 2 2 . . 1 Swarmer 8 | . . . . 2 3 . 1 . . . 2 . . . Grunt 54 | . 7 2 . . . 16 4 . 4 10 8 . . 3 Duelist 5 | . . . . . . 3 . . . . 2 . . . Sentry 20 | . . . . . 2 9 2 . 1 2 4 . . . Demolisher 1 | . . . . . . 1 . . . . . . . . Specialist 2 | . . . . . . . . . . 2 . . . . Hunter 7 | . . . . . 1 2 . . . 2 2 . . . Programmer 5 | . . . . . . . 1 . . 4 . . . . Heavy 1 | . . . . . . . . . . 1 . . . . Behemoth 2 | . . . . . . . . . . . 2 . . . Cetus Guard 3 | . . . . . . . . . . . . 3 . . Enhanced Grunt 1 | . . . . . . . . . . . . . . 1 Guerrilla 1 | . . . . . . . . . . . . . . 1 Best Kill Streak 10 | . 3 2 . 2 2 10 6 . 3 10 7 3 2 8 Combat Bots Only 9 | . 3 2 . 2 2 9 6 . 3 4 5 3 . 2 Max Kills in Single Turn 9 | . 1 1 . 1 1 4 1 . 1 2 2 1 1 9 Gunslinging 1 | . . . . . . . . . . 1 . . . . Exploded 3 | . . . . 1 1 3 . . . . 2 . . 2 Melee 1 | . . . . . . . . . 1 . . . . . Uniques/NPCs Destroyed . | . . . . . . . . . . . . . . . Combat | -11 -10 -10 -10 -9 -8 -8 -8 -8 -6 -5 -5 -5 -5 -5 -------- Run | Yrd Mat Min Exi Min Mat Sto Rec Scr Fac Fac Ext Cet Arc Hub Hostile Shots Fired 839 | . 83 9 . 12 61 176 27 . 31 129 183 18 6 104 Missed 219 | . 26 4 . . 18 43 5 . 13 30 51 7 . 22 Damage Taken 12182 | . 724 69 . 95 439 2146 316 . 245 1839 2885 207 123 3094 Core 1687 | . 149 41 . 59 75 302 57 . . 263 247 . 22 472 Absorbed by Shields 328 | . . . . . . . 14 . 21 . 199 94 . . Redirected to Shielding 285 | . . . . . 54 127 . . . 24 51 . . 29 Regen/Repaired (Parts) 434 | . . . . . . 262 . . . 172 . . . . Core Remaining (%) 55 | 100 . . . . . . . 21 100 . . . . . Volleys Fired 427 | . 42 5 . 3 22 118 22 . 13 71 73 7 31 20 Largest 4 | . 2 2 . 2 3 3 3 . 4 4 4 2 2 3 Hottest 367 | . 60 40 . 60 144 144 75 . 150 367 367 240 114 172 Shots Fired 1095 | . 80 10 . 4 52 335 67 . 44 242 170 12 50 29 Gun 793 | . 80 10 . 3 7 244 67 . 44 242 36 1 44 15 Cannon 288 | . . . . 1 42 89 . . . . 131 10 6 9 Launcher 14 | . . . . . 3 2 . . . . 3 1 . 5 Special . | . . . . . . . . . . . . . . . Kinetic 902 | . 65 10 . 3 49 333 67 . 39 124 147 10 37 18 Thermal 158 | . . . . . . . . . 5 118 17 1 13 4 Explosive 14 | . . . . . 3 2 . . . . 3 1 . 5 Electromagnetic 21 | . 15 . . 1 . . . . . . 3 . . 2 Robot Hit Streak 13 | . 12 2 . 3 5 11 13 . 7 13 12 4 6 8 Robot Miss Streak 12 | . 2 3 . 1 12 5 2 . 5 4 9 1 2 3 Penetration Max 2 | . . . . . . 1 . . . 1 2 . 1 . Secondary Targets 14 | . 2 . . . . 3 1 . 1 7 . . . . Max Gunslinging Chain 1 | . 1 . . . . 1 1 . 1 1 . . . . Shots Hit Robots 611 | . 48 5 . 3 18 170 44 . 27 158 83 7 32 16 Core Hits 368 | . 20 4 . 3 9 80 18 . 18 98 55 10 22 31 Critical Kills 16 | . . . . . . . . . . 2 9 3 2 . Critical Parts Destroyed 16 | . . . . . 1 . . . . 1 11 . 2 1 Critical Strikes 55 | . . . . . 3 9 . . . 6 27 4 4 2 Burn 2 | . . . . . . . . . . 2 . . . . Destroy 36 | . . . . . 1 . . . . 4 22 4 4 1 Blast 17 | . . . . . 2 9 . . . . 5 . . 1 Melee Attacks . | . . . . . . . . . . . . . . . Impact . | . . . . . . . . . . . . . . . Slashing . | . . . . . . . . . . . . . . . Piercing . | . . . . . . . . . . . . . . . Sneak Attacks . | . . . . . . . . . . . . . . . Combat Hostiles . | . . . . . . . . . . . . . . . Follow-up Attacks . | . . . . . . . . . . . . . . . Damage Inflicted 17751 | . 608 52 . 83 745 4088 787 . 470 3606 3239 303 979 2791 Guns 9694 | . 579 52 . 21 70 2420 763 . 468 3589 542 . 912 278 Cannons 3943 | . . . . 4 330 1209 . . . . 1996 143 65 196 Explosions 4046 | . 29 . . 58 345 436 . . . . 701 160 . 2317 Melee . | . . . . . . . . . . . . . . . Ramming 68 | . . . . . . 23 24 . 2 17 . . 2 . Kinetic 10913 | . 406 52 . 21 400 3629 763 . 389 1689 2365 143 664 392 Thermal 2933 | . 29 . . . . . . . 79 1900 538 . 313 74 Explosive 2123 | . . . . . 345 436 . . . . 244 160 . 938 Electromagnetic 1714 | . 173 . . 62 . . . . . . 92 . . 1387 Impact . | . . . . . . . . . . . . . . . Slashing . | . . . . . . . . . . . . . . . Piercing . | . . . . . . . . . . . . . . . Highest Corruption 32 | . . . . 1 . 3 4 . . 5 10 11 11 32 Average Corruption 4 | . . . . 1 . 1 3 . . 3 6 8 9 13 Corruption Purged 18 | . . . . . . . . . . . 7 . 11 . Corruption Blocked . | . . . . . . . . . . . . . . . Effects 119 | . . . . . . 13 5 . . 24 44 11 17 5 Message Errors 29 | . . . . . . 5 . . . 8 11 4 1 . Matter Fused 28 | . . . . . . 4 2 . . 2 11 3 4 2 Heat Flow Errors 19 | . . . . . . 1 1 . . 5 5 3 3 1 Energy Discharges 14 | . . . . . . 2 . . . 3 4 . 4 1 Data Loss (minor) 9 | . . . . . . 1 1 . . 2 3 1 1 . Data Loss (major) 7 | . . . . . . . . . . 1 5 . 1 . Misfires 4 | . . . . . . . 1 . . . 1 . 2 . Alerts 4 | . . . . . . . . . . 2 1 . . 1 Weapon Failures 5 | . . . . . . . . . . 1 3 . 1 . Overload Shots 5 | . . . . . . . . . . 2 2 1 . . Overflow Damage 184 | . . . . . 59 10 . . . . . 1 . 114 Projectiles 16 | . . . . . 11 5 . . . . . . . . Explosions 168 | . . . . . 48 5 . . . . . 1 . 114 Melee . | . . . . . . . . . . . . . . . Knockbacks 26 | . . . . . 1 11 . . . . 13 . 1 . Impact . | . . . . . . . . . . . . . . . Kinetic 26 | . . . . . 1 11 . . . . 13 . 1 . Secondary . | . . . . . . . . . . . . . . . Self-Inflicted Damage 159 | . . . . . . 3 . . . . . . . 156 Shots 2 | . . . . . . . . . . . . . . 2 Rammed 11 | . . . . . . 5 1 . . 4 . . 1 . Targets Rammed 12 | . . . . . . 5 1 . 1 4 . . 1 . Kicked . | . . . . . . . . . . . . . . . Crushed 1 | . . . . . . . . . 1 . . . . . Highest Temperature 539 | . 74 18 . 24 319 339 105 . 210 437 539 228 232 192 Average Temperature 102 | . 31 7 . 8 127 97 18 . 80 130 123 95 82 59 Received Heat Transfer 2662 | . 426 39 . . 27 999 82 . 98 288 568 . . 135 Effects 9 | . . . . . 1 3 . . . 4 1 . . . Shutdowns 1 | . . . . . . . . . . 1 . . . . Energy Bleed 3 | . . . . . . 2 . . . 1 . . . . Interference 1 | . . . . . . . . . . 1 . . . . Matter Decay 2 | . . . . . 1 . . . . 1 . . . . Short Circuit 1 | . . . . . . 1 . . . . . . . . Damage (minor) 1 | . . . . . . . . . . . 1 . . . Siege Activations . | . . . . . . . . . . . . . . . Robots Corrupted . | . . . . . . . . . . . . . . . Combat Hostiles . | . . . . . . . . . . . . . . . Parts Fried 9 | . 1 . . . . . . . . . . . . 8 Impact Corruptions . | . . . . . . . . . . . . . . . Robots Melted . | . . . . . . . . . . . . . . . Combat Hostiles . | . . . . . . . . . . . . . . . Parts Melted 13 | . . . . . . . . . . 12 . . 1 . Heat Transferred 4268 | . 50 . . . . . . . 70 3143 561 . 370 74 Parts Sabotaged . | . . . . . . . . . . . . . . . Parts Stolen . | . . . . . . . . . . . . . . . Parts Stripped . | . . . . . . . . . . . . . . . Power Chain Reactions 2 | . 1 . . . . . . . . . . . . 1 Latent Energy Used 698 | . . . . 56 . . . . . . 242 . . 400 LE Corruption 12 | . . . . 1 . . . . . . 5 . . 6 Alert | -11 -10 -10 -10 -9 -8 -8 -8 -8 -6 -5 -5 -5 -5 -5 ------- Run | Yrd Mat Min Exi Min Mat Sto Rec Scr Fac Fac Ext Cet Arc Hub Peak Influence 1084 | . 172 116 . 62 320 671 300 . 413 521 1046 744 597 1084 Initial 585 | . . 66 . . 24 50 86 . . 202 254 585 297 138 Average 358 | . 84 76 . 54 147 297 201 . 189 334 521 724 466 526 Maximum Alert Level 3 | . . . . . 1 2 1 . 2 2 3 3 2 3 Low Security (%) 24 | 100 100 100 . 100 68 33 36 . 63 . . . . 21 Level 1 44 | . . . . . 31 39 63 . 7 80 59 . 45 2 Level 2 20 | . . . . . . 27 . . 29 19 11 12 54 57 Level 3 10 | . . . . . . . . . . . 29 87 . 19 Level 4 . | . . . . . . . . . . . . . . . Level 5 . | . . . . . . . . . . . . . . . High Security . | . . . . . . . . . . . . . . . Max Security . | . . . . . . . . . . . . . . . Squads Dispatched 30 | . . . . . 1 6 . . 3 10 7 . . 3 Investigation 13 | . . . . . 1 4 . . 2 2 3 . . 1 Extermination 3 | . . . . . . . . . 1 2 . . . . Reinforcement 9 | . . . . . . 1 . . . 5 1 . . 2 Assault 4 | . . . . . . 1 . . . . 3 . . . Garrison 1 | . . . . . . . . . . 1 . . . . Intercept . | . . . . . . . . . . . . . . . Searches Triggered . | . . . . . . . . . . . . . . . Construction Impeded 3 | . . . . . . 1 . . . 1 1 . . . Haulers Reinforced . | . . . . . . . . . . . . . . . Active Scanning Responses . | . . . . . . . . . . . . . . . Cargo Convoy Interrupts . | . . . . . . . . . . . . . . . Stealth | -11 -10 -10 -10 -9 -8 -8 -8 -8 -6 -5 -5 -5 -5 -5 --------- Run | Yrd Mat Min Exi Min Mat Sto Rec Scr Fac Fac Ext Cet Arc Hub Distress Signals 6 | . 1 . . . . 1 . . . 2 1 1 . . Communications Jammed . | . . . . . . . . . . . . . . . Distress Signals . | . . . . . . . . . . . . . . . Times Spotted 214 | . 11 2 . 3 7 44 7 . 8 26 48 5 26 27 Peak Tracking Total 12 | . 4 2 . 3 3 8 6 . 3 5 8 5 2 12 Tactical Retreats 5 | . . . . . . 3 . . . . 1 . . 1 Traps | -11 -10 -10 -10 -9 -8 -8 -8 -8 -6 -5 -5 -5 -5 -5 ------- Run | Yrd Mat Min Exi Min Mat Sto Rec Scr Fac Fac Ext Cet Arc Hub Traps Triggered 3 | . . . . . . 1 . . . . 2 . . . Indirectly . | . . . . . . . . . . . . . . . Trap Hack Attempts . | . . . . . . . . . . . . . . . Triggered . | . . . . . . . . . . . . . . . Disarmed . | . . . . . . . . . . . . . . . Reprogrammed 6 | . . . . . . 6 . . . . . . . . Reused 5 | . . . . . . . . . . 2 3 . . . Traps Reconfigurated 21 | . . . . . . . . . 5 4 8 . . 4 Traps Extracted . | . . . . . . . . . . . . . . . Installed . | . . . . . . . . . . . . . . . Triggered 5 | . . . . . . . . . . 2 3 . . . Objects Rigged 1 | . . . . . . . . . . . 1 . . . Exploded 1 | . . . . . . . . . . . 1 . . . Machines | -11 -10 -10 -10 -9 -8 -8 -8 -8 -6 -5 -5 -5 -5 -5 ---------- Run | Yrd Mat Min Exi Min Mat Sto Rec Scr Fac Fac Ext Cet Arc Hub Machines Disabled 33 | . . . . . 4 5 1 . . 1 8 1 3 10 Max in Single Turn 8 | . . . . . 3 1 1 . . 1 1 1 1 8 Garrison Access 3 | . . . . . 1 1 . . 1 . . . . . Network Hub 1 | . . . . . . . . . . . . . . 1 Energy Cycler 1 | . . . . . . . . . . . 1 . . . Machines Repaired . | . . . . . . . . . . . . . . . Machines Dismantled . | . . . . . . . . . . . . . . . Machines Sabotaged . | . . . . . . . . . . . . . . . Overloaded Fab Kills . | . . . . . . . . . . . . . . . Hacking | -11 -10 -10 -10 -9 -8 -8 -8 -8 -6 -5 -5 -5 -5 -5 --------- Run | Yrd Mat Min Exi Min Mat Sto Rec Scr Fac Fac Ext Cet Arc Hub Machines Accessed 46 | . . . 2 . 2 15 7 . 4 6 8 . . 2 Terminals 28 | . . . . . . 10 4 . 1 3 8 . . 2 Fabricators 2 | . . . . . . . . . 1 1 . . . . Repair Stations 4 | . . . . . . 2 . . 1 1 . . . . Recycling Units 6 | . . . . . . 2 3 . . 1 . . . . Scanalyzers 1 | . . . . . 1 . . . . . . . . . Garrison Access 3 | . . . . . 1 1 . . 1 . . . . . Total Hacks 157 | . . . 2 . 9 59 19 . 19 15 26 . . 8 Successful 82 | . . . 2 . 7 37 8 . 11 5 9 . . 3 Failed 75 | . . . . . 2 22 11 . 8 10 17 . . 5 Catastrophic 11 | . . . . . . 3 1 . 2 1 3 . . 1 Database Lockouts . | . . . . . . . . . . . . . . . Manual 67 | . . . 1 . . 27 6 . 7 1 11 1 10 3 Terminals 110 | . . . . . . 43 14 . 12 7 26 . . 8 Fabricators 5 | . . . . . . . . . 2 3 . . . . Repair Stations 11 | . . . . . . 6 . . 3 2 . . . . Recycling Units 15 | . . . . . . 7 5 . . 3 . . . . Scanalyzers 8 | . . . . . 8 . . . . . . . . . Garrison Access 6 | . . . . . 1 3 . . 2 . . . . . Terminal Hacks 36 | . . . 2 . . 14 5 . 6 1 5 . . 3 Record 2 | . . . 1 . . 1 . . . . . . . . Robot Schematic 1 | . . . . . . 1 . . . . . . . . Robot Analysis 3 | . . . . . . 1 1 . . . 1 . . . Prototype ID Bank 2 | . . . . . . . 2 . . . . . . . Open Door 5 | . . . . . . 1 . . . 1 3 . . . Emergency Access Points 1 | . . . . . . 1 . . . . . . . . Terminal Index 3 | . . . . . . 1 1 . 1 . . . . . Repair Station Index 1 | . . . . . . . . . 1 . . . . . Alert Level 6 | . . . . . . 3 1 . 1 . . . . 1 Unreport Threat 4 | . . . . . . 3 . . . . . . . 1 Locate Traps 3 | . . . . . . 1 . . . . 1 . . 1 Reprogram Traps 1 | . . . . . . 1 . . . . . . . . Security Status 1 | . . . . . . . . . 1 . . . . . Surveillance Status 1 | . . . . . . . . . 1 . . . . . Zone Layout 1 | . . . . . . . . . 1 . . . . . Derelict Proto ID Bank 1 | . . . 1 . . . . . . . . . . . Fabricator Hacks . | . . . . . . . . . . . . . . . Repair Station Hacks 9 | . . . . . . 6 . . 1 2 . . . . Scan Component 5 | . . . . . . 3 . . 1 1 . . . . Repair 4 | . . . . . . 3 . . . 1 . . . . Recycling Unit Hacks 10 | . . . . . . 6 3 . . 1 . . . . Process 2 | . . . . . . 2 . . . . . . . . Report Inventory 6 | . . . . . . 2 3 . . 1 . . . . Retrieve Matter 2 | . . . . . . 2 . . . . . . . . Scanalyzer 6 | . . . . . 6 . . . . . . . . . Insert Component 3 | . . . . . 3 . . . . . . . . . Analyze 3 | . . . . . 3 . . . . . . . . . Garrison Access Hacks 2 | . . . . . 1 1 . . . . . . . . Seal Access 2 | . . . . . 1 1 . . . . . . . . Unauthorized Hacks 19 | . . . . . . 10 . . 4 1 4 . . . Terminals 16 | . . . . . . 10 . . 2 . 4 . . . Track 1 | . . . . . . . . . 1 . . . . . Botnet 8 | . . . . . . 4 . . 1 . 3 . . . Detonate 1 | . . . . . . . . . . . 1 . . . Skim 6 | . . . . . . 6 . . . . . . . . Fabricators 2 | . . . . . . . . . 1 1 . . . . Fabnet 2 | . . . . . . . . . 1 1 . . . . Repair Stations . | . . . . . . . . . . . . . . . Recycling Units . | . . . . . . . . . . . . . . . Scanalyzers . | . . . . . . . . . . . . . . . Garrison Access 1 | . . . . . . . . . 1 . . . . . Jam 1 | . . . . . . . . . 1 . . . . . Data Cores Recovered 1 | . . . . . . . . . 1 . . . . . Used 1 | . . . . . . . . . 1 . . . . . Hacking Detections 38 | . . . . . 1 14 5 . 4 5 7 . . 2 Full Trace Events 17 | . . . . . 1 4 5 . 1 2 3 . . 1 Feedback Events 3 | . . . . . . 1 1 . . 1 . . . . Corruption 3 | . . . . . . 1 1 . . 1 . . . . Feedback Blocked . | . . . . . . . . . . . . . . . Robot Schematics Acquired 1 | . . . . . . 1 . . . . . . . . Robots Built . | . . . . . . . . . . . . . . . Authchips . | . . . . . . . . . . . . . . . Time . | . . . . . . . . . . . . . . . Total Robot Build Rating . | . . . . . . . . . . . . . . . Part Schematics Acquired 3 | . . . . . 3 . . . . . . . . . Parts Built . | . . . . . . . . . . . . . . . Authchips . | . . . . . . . . . . . . . . . Time . | . . . . . . . . . . . . . . . Total Part Build Rating . | . . . . . . . . . . . . . . . Parts Repaired 4 | . . . . . . 3 . . . 1 . . . . Time 235 | . . . . . . 146 . . . 89 . . . . Parts Recycled . | . . . . . . . . . . . . . . . Recycled Matter 333 | . . . . . . 333 . . . . . . . . Retrieved Matter 416 | . . . . . . 416 . . . . . . . . Retrieved Components . | . . . . . . . . . . . . . . . Parts Scanalyzed 3 | . . . . . 3 . . . . . . . . . Part Schematics Acquired 3 | . . . . . 3 . . . . . . . . . Parts Damaged . | . . . . . . . . . . . . . . . Bothacking | -11 -10 -10 -10 -9 -8 -8 -8 -8 -6 -5 -5 -5 -5 -5 ------------ Run | Yrd Mat Min Exi Min Mat Sto Rec Scr Fac Fac Ext Cet Arc Hub Used RIF Installer . | . . . . . . . . . . . . . . . Robots Hacked 3 | . . . . . . . . . . . 3 . . . Non-combat . | . . . . . . . . . . . . . . . Combat 3 | . . . . . . . . . . . 3 . . . Robot Hacks Applied . | . . . . . . . . . . . . . . . Relay Couplers Released . | . . . . . . . . . . . . . . . Fabnet Peak Effective % 3 | . . . . . . . . . . 3 3 3 3 3 Autooverrided 3 | . . . . . . . . . . . 3 . . . Robots Rewired 7 | . . . . . . . 4 . . . 3 . . . Allies Hacked . | . . . . . . . . . . . . . . . Hacks Repelled . | . . . . . . . . . . . . . . . Allies | -11 -10 -10 -10 -9 -8 -8 -8 -8 -6 -5 -5 -5 -5 -5 -------- Run | Yrd Mat Min Exi Min Mat Sto Rec Scr Fac Fac Ext Cet Arc Hub Total Allies 30 | . . . . . . 10 4 . . . 11 5 . . Largest Group 10 | . . . . . . 10 4 4 4 . 6 7 7 6 Highest-Rated Group 673 | . . . . . . 173 76 76 76 . 332 673 673 505 Highest-Rated Ally 159 | . . . . . . 29 27 27 27 . 159 159 159 96 Total Orders . | . . . . . . . . . . . . . . . Ally Attacks 278 | . . . . 1 . 40 2 . 26 . 91 8 26 84 Total Damage 8034 | . . . . 42 . 476 30 . 416 . 2367 240 992 3471 Kills 39 | . . . . 1 . 1 . . 3 . 19 2 4 9 Allies Corrupted 2 | . . . . . . . . . . . . . . 2 Allies Melted 1 | . . . . . . . . . . . 1 . . . Turrets Deployed 3 | . . . . 1 . . . . . . . . . 2 Intel | -11 -10 -10 -10 -9 -8 -8 -8 -8 -6 -5 -5 -5 -5 -5 ------- Run | Yrd Mat Min Exi Min Mat Sto Rec Scr Fac Fac Ext Cet Arc Hub Robot Analysis Total 3 | . . . . . . 1 1 . . . 1 . . . Derelict Logs Recovered 2 | . . 1 . 1 . . . . . . . . . . Drone Launches . | . . . . . . . . . . . . . . . Drone Recoveries . | . . . . . . . . . . . . . . . Exploration | -11 -10 -10 -10 -9 -8 -8 -8 -8 -6 -5 -5 -5 -5 -5 ------------- Run | Yrd Mat Min Exi Min Mat Sto Rec Scr Fac Fac Ext Cet Arc Hub Turns Passed 7681 | 3 231 179 243 66 454 1420 415 426 357 1169 1463 332 674 249 Spaces Moved 3831 | 3 84 141 223 55 302 758 219 291 212 513 513 121 277 119 Core 18 | . . . . . . . . . . . . . . 18 Treads 2314 | . . . . . . 128 219 291 212 452 513 121 277 101 Legs 49 | 3 46 . . . . . . . . . . . . . Wheels 1450 | . 38 141 223 55 302 630 . . . 61 . . . . Hover . | . . . . . . . . . . . . . . . Flight . | . . . . . . . . . . . . . . . Fastest Speed 50 | 120 100 100 100 100 100 98 145 145 145 140 160 163 165 50 Average Speed 147 | 120 110 100 100 100 112 123 145 145 145 163 222 164 165 148 Slowest Speed 305 | 120 120 115 100 100 115 305 145 145 145 250 246 165 165 250 Overloaded Moves . | . . . . . . . . . . . . . . . Propulsion Burnouts . | . . . . . . . . . . . . . . . Robots Hopped . | . . . . . . . . . . . . . . . Cave-ins Triggered . | . . . . . . . . . . . . . . . Exploration Rate (%) 38 | 2 18 32 61 8 23 85 58 25 6 15 67 59 87 27 Regions Visited 14 Branch Regions 10 Pre-discovered Areas 2 | . . . 1 . . 1 . . . . . . . . Known Exits Taken 9 | . 1 1 1 1 . 1 . . . 1 1 1 1 . Unknown Exits Taken 5 | 1 . . . . 1 . 1 1 1 . . . . . Scrap Searched 1 | . . . . . . . . 1 . . . . . . Spaces Dug 2 | . . . . . . 2 . . . . . . . . Terrain Destroyed 461 | . 4 . . . 56 58 . . . 4 103 25 4 207 Melee . | . . . . . . . . . . . . . . . Projectile 137 | . . . . . 33 42 . . . 4 48 4 4 2 AOE 324 | . 4 . . . 23 16 . . . . 55 21 . 205 Terrain Rammed . | . . . . . . . . . . . . . . . Walls Destroyed . | . . . . . . . . . . . . . . . Machines Disabled . | . . . . . . . . . . . . . . . Actions | -11 -10 -10 -10 -9 -8 -8 -8 -8 -6 -5 -5 -5 -5 -5 --------- Run | Yrd Mat Min Exi Min Mat Sto Rec Scr Fac Fac Ext Cet Arc Hub Total 5168 | 2 144 171 245 63 376 1068 296 295 248 695 705 243 449 168 Wait 453 | . 1 16 13 3 4 134 29 2 . 36 2 100 111 2 Move 3817 | 2 83 140 222 54 301 757 218 290 211 512 512 120 276 119 Hop . | . . . . . . . . . . . . . . . Pick Up 80 | . 5 4 5 . 17 3 . . 9 12 10 2 10 3 Fast Attach 45 | . 1 . . . 6 18 . . 2 7 6 1 3 1 Attach 40 | . 4 . . 1 1 1 1 3 3 9 9 . . 8 Detach 16 | . . . . 1 1 . 3 . 1 4 4 . 1 1 Swap 98 | . 2 3 . . 10 22 . . 3 28 15 7 5 3 Drop 94 | . . 3 5 1 14 10 3 . 5 12 13 6 11 11 Fire 427 | . 42 5 . 3 22 118 22 . 13 71 73 7 31 20 Melee . | . . . . . . . . . . . . . . . Ram 1 | . . . . . . 1 . . . . . . . . Kick . | . . . . . . . . . . . . . . . Crush 11 | . . . . . . 4 1 . 1 4 . . 1 . Escape Stasis 4 | . . . . . . . . . . . 4 . . . Rewire 82 | . 6 . . . . . 19 . . . 57 . . . Trap . | . . . . . . . . . . . . . . . Miscellaneous . | . . . . . . . . . . . . . . . Route ------- -11/Scrapyard -10/Materials -10/Mines (discovered 2 exits: [*Mat] / *Exi) -10/Exiles -9/Mines (discovered 2 exits: *Mat x2) -8/Materials -8/Storage (discovered 2 exits: [*Fac] / *Rec) -8/Recycling -8/Scraptown -6/Factory -5/Factory -5/Extension (discovered 3 exits: [*Fac x2] / *Cet) -5/Cetus -5/Archives (discovered 3 exits: [*Fac] / *Hub x2) -5/Hub_04(d) History --------- Turn | Location | Event 1 | -11/Scrapyard | Discovered new exit (range 1) 4 | -11/Scrapyard | Entered Materials 101 | -10/Materials | Discovered new exit (range 15) 146 | -10/Materials | Core integrity fell below 50% 179 | -10/Materials | Lost 3 parts (1p2n) 233 | -10/Materials | Identified exit to Mines 235 | -10/Materials | Entered Mines 238 | -10/Mines | Learned Materials interactive machine intel 344 | -10/Mines | Build established: Mutant 365 | -10/Mines | Discovered new exit (range 5) 393 | -10/Mines | Deemed a non-threat by the Exiles lab entrance 393 | -10/Mines | Discovered new exit (range 5) 396 | -10/Mines | Identified exit to Exiles 414 | -10/Mines | Entered Exiles 439 | -10/Exiles | Met 8R-AWN 456 | -10/Exiles | Met EX-HEX 486 | -10/Exiles | Met EX-BIN 500 | -10/Exiles | Aligned with FarCom system 501 | -10/Exiles | Given EX-Vault access code 524 | -10/Exiles | Opened EX-Vault 536 | -10/Exiles | Found Latent Energy Streamer 540 | -10/Exiles | Found Deploy-a-Sentry 542 | -10/Exiles | Found Deploy-a-Sentry 546 | -10/Exiles | Found Trap Reconfigurator 548 | -10/Exiles | Found Deploy-a-Sentry 568 | -10/Exiles | Warned to stay clear of 0b10 Research branches 573 | -10/Exiles | Exiles lab attacked by MAIN.C 616 | -10/Exiles | Learned location of Zion (-6) 645 | -10/Exiles | Discovered new exit (range 14) 655 | -10/Exiles | Identified exit to Mines 657 | -10/Exiles | Stole three prototypes: Trap Reconfigurator, Latent Energy Streamer, Deploy-a-Sentry 657 | -10/Exiles | Entered Mines 662 | -9/Mines | Core integrity fell below 20% 669 | -9/Mines | DAS Turret deployed 704 | -9/Mines | Discovered new exit (range 6) 713 | -9/Mines | Identified exit to Materials 723 | -9/Mines | Entered Materials 723 | -8/Materials | Evolved 4 slots: Propulsion x1, Utility x2, Weapon x1 724 | -8/Materials | Loaded intel: 19 interactive machine locations 814 | -8/Materials | Discovered new exit (range 11) 1145 | -8/Materials | Build established: Skirmisher 1177 | -8/Materials | Entered Storage 1254 | -8/Storage | Repaired Tractor Beam 1604 | -8/Storage | Destroyed 9 combat bots 1697 | -8/Storage | Core integrity fell below 50% 1743 | -8/Storage | Lost 3 parts (1p2w) 1803 | -8/Storage | Assisted by bots powering up and referring to "LRC-V3" 1977 | -8/Storage | First assault squad dispatched 2060 | -8/Storage | Lost 7 allies 2191 | -8/Storage | Learned Factory trap positions 2215 | -8/Storage | Discovered new exit (range 16) 2261 | -8/Storage | Identified exit to Recycling 2362 | -8/Storage | Repaired Enh. Autogun 2423 | -8/Storage | Learned location of Recycling (-8) 2424 | -8/Storage | Repaired Enh. Autogun 2459 | -8/Storage | Loaded intel: 12 trap records 2506 | -8/Storage | Learned Factory trap positions 2563 | -8/Storage | Learned Factory emergency access door positions 2568 | -8/Storage | Build established: Tank 2594 | -8/Storage | Used back door to open Recycling access 2597 | -8/Storage | Entered Recycling 2946 | -8/Recycling | Scanned before Scraplab entrance 2972 | -8/Recycling | Entered Scraplab 2984 | -8/Recycling | Discovered new exit (range 3) 3012 | -8/Recycling | Entered Scraptown 3012 | -8/Scraptown | Accompanied by 4 allies 3012 | -8/Scraptown | System corruption cleaned by C-Scrubber 3129 | -8/Scraptown | Visited Comm Corps 3216 | -8/Scraptown | Visited The Evicted 3288 | -8/Scraptown | Turned away by UFD registrar 3288 | -8/Scraptown | Turned away by UFD registrar 3295 | -8/Scraptown | Heard Great Nut preacher, LISTEN AND RECITE! 3322 | -8/Scraptown | Build established: Commander-Tank 3417 | -8/Scraptown | Discovered new exit (range 11) 3438 | -8/Scraptown | Entered Factory 3438 | -6/Factory | Accompanied by 4 allies 3438 | -6/Factory | Evolved 4 slots: Utility x3, Weapon x1 3439 | -6/Factory | Loaded intel: 102 trap records 3440 | -6/Factory | FarCom data flow suspended 3609 | -6/Factory | Discovered new exit (range 17) 3662 | -6/Factory | Spotted B-75 Beast 3701 | -6/Factory | Lost 3 allies 3795 | -6/Factory | Entered another Factory area 3795 | -5/Factory | Evolved 2 slots: Utility x2 3796 | -5/Factory | Loaded intel: 110 trap records 3962 | -5/Factory | Garrison activated, responded to threat 4159 | -5/Factory | Lost 4 parts (2n2u) 4418 | -5/Factory | Build established: Hacker-Skirmisher 4811 | -5/Factory | Repaired Imp. KE Penetrator 4935 | -5/Factory | Build established: Scavenger-Tank 4958 | -5/Factory | Discovered new exit (range 6) 4963 | -5/Factory | Identified exit to Extension 4964 | -5/Factory | Entered Extension 5011 | -5/Extension | Disrupted transfer network 5149 | -5/Extension | Spotted B-75 Beast 5189 | -5/Extension | Destroyed B-75 Beast 5216 | -5/Extension | Spotted B-75 Beast 5223 | -5/Extension | System corruption reached 10% 5248 | -5/Extension | Destroyed B-75 Beast 5278 | -5/Extension | Lost 5 parts (1p1u3w) 5379 | -5/Extension | Rescued a captive Derelict 5379 | -5/Extension | Rescued a captive Derelict 5410 | -5/Extension | Rescued a captive Derelict 5784 | -5/Extension | Rescued a captive Derelict 5800 | -5/Extension | Energy Cycler disabled 5800 | -5/Extension | Rescued a captive Derelict 5801 | -5/Extension | Rescued a captive Derelict 5802 | -5/Extension | Rescued a captive Derelict 5802 | -5/Extension | Rescued a captive Derelict 5803 | -5/Extension | Rescued a captive Derelict 5804 | -5/Extension | Rescued a captive Derelict 5807 | -5/Extension | Rescued a captive Derelict 5815 | -5/Extension | Rescued a captive Derelict 5816 | -5/Extension | Rescued A7 5851 | -5/Extension | Local machine network offline 5864 | -5/Extension | First assault squad dispatched 5930 | -5/Extension | Lost 3 allies 5930 | -5/Extension | Core integrity fell below 50% 6141 | -5/Extension | Discovered new exit (range 14) 6363 | -5/Extension | Discovered new exit (range 15) 6366 | -5/Extension | Discovered new exit (range 15) 6413 | -5/Extension | Identified exit to Cetus 6427 | -5/Extension | Entered Cetus 6427 | -5/Cetus | Accompanied by 2 allies (A7) 6432 | -5/Cetus | Acquired a Cetus Manufacturing Module code from A7 6449 | -5/Cetus | Spotted Cetus Guard 6449 | -5/Cetus | Spotted Cetus Guard 6451 | -5/Cetus | Destroyed Cetus Guard 6454 | -5/Cetus | Destroyed Cetus Guard 6457 | -5/Cetus | Spotted Cetus Guard 6461 | -5/Cetus | Destroyed Cetus Guard 6463 | -5/Cetus | Build established: Tank 6469 | -5/Cetus | Spotted Cetus Guard 6470 | -5/Cetus | Allies destroyed Cetus Guard 6568 | -5/Cetus | Started Cetus Manufacturing Module 6587 | -5/Cetus | Escorted A7 to Cetus Mainframe 6593 | -5/Cetus | Manufactured an Enhanced Grunt 6618 | -5/Cetus | Manufactured an Enhanced Grunt 6643 | -5/Cetus | Manufactured an Enhanced Grunt 6668 | -5/Cetus | Manufactured an Enhanced Grunt 6693 | -5/Cetus | Manufactured an Enhanced Grunt 6731 | -5/Cetus | Discovered new exit (range 16) 6754 | -5/Cetus | Identified exit to Archives 6759 | -5/Cetus | Entered Archives 6759 | -5/Archives | Accompanied by 7 allies (A7) 6764 | -5/Archives | Received a hacking code to weaken MAIN.C 6777 | -5/Archives | Extracted ID and sensor layout for unrecognized location from A7's data core 6807 | -5/Archives | Unable to access archive contents 6916 | -5/Archives | Discovered new exit (range 16) 6940 | -5/Archives | Discovered new exit (range 15) 6965 | -5/Archives | Discovered new exit (range 16) 7209 | -5/Archives | Build established: Scavenger-Gunner 7418 | -5/Archives | Identified exit to Hub_04(d) 7433 | -5/Archives | Entered Hub_04(d) 7433 | -5/Hub_04(d) | Accompanied by 6 allies 7534 | -5/Hub_04(d) | Build established: Scavenger-Tank 7574 | -5/Hub_04(d) | Spotted B-75 Beast 7603 | -5/Hub_04(d) | Allies destroyed B-75 Beast 7633 | -5/Hub_04(d) | Network Hub disabled 7636 | -5/Hub_04(d) | Spotted Lightning 7637 | -5/Hub_04(d) | Spotted Lightning 7640 | -5/Hub_04(d) | DAS Turret deployed 7640 | -5/Hub_04(d) | Spotted Lightning 7645 | -5/Hub_04(d) | DAS Turret deployed 7650 | -5/Hub_04(d) | Spotted Lightning 7651 | -5/Hub_04(d) | Spotted Lightning 7652 | -5/Hub_04(d) | Spotted Lightning 7657 | -5/Hub_04(d) | System corruption reached 30% 7668 | -5/Hub_04(d) | Core integrity fell below 20% 7682 | -5/Hub_04(d) | Destroyed by Lightning with EMDS Last Messages --------------- 07664_ Penetrated by EMDS Slug. 07665_ EMDS Slug penetrates Wall. 07665_ Arm. Medium Treads destroyed. 07666_ Dropped Unknown Device. 07667_ Dropped Imp. System Shield. 07667_ Penetrated by Slug. 07667_ Mass Driver destroyed. 07667_ EMDS Slug penetrates Wall. 07668_ Dropped Exp. Heat Sink. 07668_ Slug penetrates Wall. 07668_ Dropped Hcp. Matter Pod. 07669_ System corrupted: Matter fused (-9). 07669_ Dropped Imp. Particle Charger. 07669_ EMDS Slug penetrates Wall. 07670_ Dropped Lrg. Storage Unit. 07670_ EMDS Slug penetrates Wall. 07670_ Fission Core destroyed. 07671_ Extracted 14 matter. 07671_ Penetrated by EMDS Slug. 07673_ EMDS Slug penetrates Wall. Map ----- +----------------------------------------------------+ | | | | | | | | | | | | | | | | | | | | | | | | | | | | | | | | | | | | | | | ?????????????????????????????????????????????????? | | ?????????????????????????????????????????????????? | | ?????????????????????????????????????????????????? | | ?????????????????????????????????????????????????? | | ???????????????????????###?####??????????????????? | | ??#????????+#####+######T## +??????????????????? | | ?? ??????? @ #???????????????????? | | ?? ???????# #???????????????????? | | ?? ???????# #???????????????????? | | ?? ???????# #???????????????????? | | ?? #???????############ #???????????????????? | | ?? #??????????????????# #???????????????????? | | ?# #??????????????????# #???????????????????? | | ?# #??????????????????# #???????????????????? | | ?# #?????########?????# ## #???????????????????? | | ##+####### ^ ?????# #? #???????????????????? | | T +^ """" #????# #? #????????????????? ?? | | # """" #????# #? ??????????????? ? | | # """" #???##;########???????????? ? | | """" !" """" #???# " #?##????????" ? | | """ # ^^ #???# " ## #######? """"""# | | # """" #???# =# # ? | | # """" #???# % %# " ??? | | % + """" #??##!!! "" """""""#???? | | # "##"# """" ####"!!! "" " #???? | | # * #"### %#%%##%! "" " #???? | | %= # """ / / " #???? | | # ####"## ""# #? | | "! " =%* "% % ""! " | | % " "= [ ]% % " " | | % " !!% ! ! ! %!% "" %" | +----------------------------------------------------+ Best States ------------- Heat Dissipation 66 Energy Generation 25 Energy Capacity 350 Matter Stores 300 Matter Capacity 500 Sight Range 16 Robot Scan Range 16 Terrain Scan Density 10 Armor Coverage 825 Utility Shielding 66 Weapon Shielding 33 Evasion (%) 55 Target Analysis 6 Core Analysis 6 Recoil Reduction 3 Particle Charging 20 Offensive Hacking 20 Item Schematics ----------------- Gauss Cannon | -8/Materials | Scanalyzed Imp. Grenade Launcher | -8/Materials | Scanalyzed Imp. Medium Armor Plating | -8/Materials | Scanalyzed Robot Schematics ------------------ B-36 Bruiser | -8/Storage | Hacked Fabricated ------------ Nothing Alien Tech Used ----------------- None Achievements -------------- None Challenges ------------ None Game ------ Seed SniperCompactDerivative Manual? 0 Play Time 01:12:37 Cumulative 959.7 hours Start 2024.10.05 @ 12:28:45 End 2024.10.05 @ 13:56:57 Sessions 1 Manual Loads 0 Difficulty Rogue Special Mode None Game No. 1171 Rogue 891 Adventurer 124 Explorer 156 Win Type - Total 41 Types 28/0/8/3/1/0/0/1/0 Lore% 85 Gallery% 90 Achievement% 78 Wizard Run 0 Options --------- Layout 0 ASCII 0 Keyboard 1 Movement Numpad Keybinds 0 Fullscreen 2 Font 18/X11 Map View 76x50 Zoom Use 0% Tactical HUD 1 Map Filters NONE Filters NONE Steam 1 RUN: 93ee3976-5c99-4a3c-97e0-b22e0d465f9b